bitfinex-derivatives/quotes_ETHF0:USTF0_20250926
["timestamp","ask_amount","ask_price","bid_price","bid_amount"]
[1758907763589,0.3771,4027.1,4027.0,3.21035089]
[1758907763888,1.48945137,4027.1,4027.0,3.65706089]
[1758907764084,1.48945137,4027.1,4027.0,4.07156089]
[1758907764881,1.48945137,4027.1,4027.0,3.65706089]
[1758907765082,1.48945137,4027.1,4027.0,0.00255089]
[1758907765291,1.48945137,4027.1,4027.0,0.44926089]
[1758907765483,1.48945137,4027.1,4027.0,0.00255089]
[1758907765883,0.11275137,4027.1,4027.0,5.04356089]
[1758907766189,1.48945137,4027.1,4027.0,5.04356089]
[1758907766398,1.48945137,4027.1,4027.0,4.45756089]
[1758907767088,1.48945137,4027.1,4027.0,4.07156089]
[1758907767593,1.48945137,4027.1,4027.0,0.86376089]
[1758907767799,1.48945137,4027.1,4027.0,1.24976089]
[1758907767985,0.39575137,4027.1,4027.0,1.83576089]
[1758907768295,1.38635137,4027.1,4027.0,1.83576089]
[1758907768588,1.10335137,4027.1,4027.0,1.83576089]
[1758907768895,0.11275137,4027.1,4027.0,5.27946089]
[1758907769289,1.48945137,4027.1,4027.0,5.04356089]
[1758907769590,1.48945137,4027.1,4027.0,4.45756089]
[1758907770191,1.48945137,4027.1,4027.0,0.86376089]
[1758907770389,1.48945137,4027.1,4027.0,0.00255089]
[1758907770584,1.93614137,4027.1,4027.0,0.00255089]
[1758907771194,6.93614137,4027.1,4027.0,0.00255089]
[1758907771891,6.77245137,4027.1,4027.0,0.00255089]
[1758907772294,6.77245137,4027.1,4027.0,0.44926089]
[1758907772495,1.48945137,4027.1,4027.0,1.83576089]
[1758907772685,1.38635137,4027.1,4027.0,1.83576089]
[1758907773293,1.77245137,4027.1,4027.0,1.24976089]
[1758907774095,1.37e-06,4027.1,4027.0,9.47896089]
[1758907774295,0.61587457,4028.1,4028.0,0.44659]
[1758907774594,0.00237457,4028.1,4028.0,1.03259]
[1758907774794,0.61587457,4028.1,4028.0,1.03259]
[1758907775191,0.61587457,4028.1,4028.0,0.44659]
[1758907776699,0.61587457,4028.1,4027.3,1.11669]
[1758907776700,0.6135,4027.9,4027.2,3.7938]
[1758907776992,0.9906,4027.4,4027.3,0.86117]
[1758907777196,1.3767,4027.4,4027.3,0.86117]
[1758907777790,0.3771,4027.4,4027.3,1.83317]
[1758907777989,1.6597,4027.8,4027.5,0.44665]
[1758907778593,0.00237457,4028.1,4028.0,0.4145]
[1758907778891,0.00237457,4028.1,4028.0,0.8219]
[1758907779394,0.61587457,4028.1,4028.0,0.586]
[1758907779594,0.00237457,4028.1,4027.9,0.44661]
[1758907779790,0.8567,4028.0,4027.9,0.44661]
[1758907780292,0.6135,4028.0,4027.9,0.44661]
[1758907780492,0.6135,4028.0,4027.9,1.03261]
[1758907780802,0.8567,4028.0,4027.9,0.44661]
[1758907781802,5.31164479,4028.0,4027.7,0.44662]
[1758907782098,0.6067,4027.9,4027.7,0.44662]
[1758907782300,0.8897,4027.8,4027.7,0.44662]
[1758907782703,0.8897,4027.8,4027.7,1.03932]
[1758907783203,0.8897,4027.8,4027.7,0.44662]
[1758907783503,0.6067,4027.7,4027.6,0.44664]
[1758907784103,0.6067,4027.7,4027.5,0.44665]
[1758907784303,0.7698,4027.4,4027.3,0.44666]
[1758907784502,0.7698,4027.4,4027.2,3.65448]
[1758907784700,0.5231,4027.5,4027.0,0.00255089]
[1758907784701,0.6067,4027.2,4027.0,0.00255089]
[1758907784896,0.7698,4027.2,4027.1,0.44669]
[1758907785097,1.6595,4027.2,4027.1,0.44669]
[1758907786198,1.77667891,4027.2,4027.0,0.44926089]
[1758907786406,1.94037891,4027.1,4027.0,0.00255089]
[1758907787905,1.49367891,4027.1,4027.0,0.00255089]
[1758907788209,1.94037891,4027.1,4027.0,0.00255089]
[1758907788701,1.49367891,4027.1,4026.5,0.44676]
[1758907788905,0.2401,4026.0,4025.6,3.2078]
[1758907789204,1.0013,4025.7,4025.6,5.03496]
[1758907789406,1.11847891,4025.7,4025.6,5.03496]
[1758907789905,1.49367891,4025.7,4025.6,0.40700082]
[1758907790101,0.7698,4025.2,4025.1,3.2078]
[1758907790404,0.6067,4025.1,4025.0,0.44692]
[1758907790612,1.49367891,4025.1,4024.8,0.44694]
[1758907790805,0.6067,4024.9,4024.8,0.44694]
[1758907791109,0.12036122,4024.9,4024.8,1.0418588]
[1758907791309,0.72706122,4024.9,4024.8,1.0418588]
[1758907791809,0.72706122,4024.9,4024.8,0.4491588]
[1758907792910,0.72706122,4024.9,4024.8,0.0022188]
[1758907794306,1.49686122,4024.9,4024.8,0.0022188]
[1758907795905,1.49686122,4024.9,4024.8,0.4074188]
[1758907796110,0.2401,4026.0,4024.8,0.4074188]
[1758907796111,0.6067,4027.3,4025.5,0.2366]
[1758907796410,0.11656105,4027.2,4027.1,1.03939]
[1758907796604,0.0248,4027.5,4027.4,1.03936]
[1758907797109,0.02699697,4027.5,4027.4,1.03936]
[1758907797806,0.63369697,4027.5,4027.4,0.44666]
[1758907799716,0.02699697,4027.5,4027.4,1.03936]
[1758907800221,0.02699697,4027.5,4027.4,4.24716]
[1758907800408,0.02699697,4027.5,4027.4,9.24716]
[1758907801012,0.02699697,4027.5,4027.4,4.24716]
[1758907801316,0.02699697,4027.5,4027.4,3.8005]
[1758907801516,0.6067,4027.4,4027.2,0.44668]
[1758907801715,0.6067,4027.4,4027.3,0.44667]
[1758907802020,0.02699697,4027.5,4027.3,0.44667]
[1758907802021,0.02699697,4027.5,4027.4,0.5927]
[1758907802211,0.02699697,4027.5,4027.3,3.65447]
[1758907802212,0.6067,4027.4,4027.3,3.65447]
[1758907802616,0.6067,4027.3,4027.1,0.44669]
[1758907802816,0.8887,4027.4,4027.3,0.44667]
[1758907803026,0.282,4027.4,4027.3,0.44667]
[1758907803422,0.02699697,4027.5,4027.3,3.65447]
[1758907803618,0.02699697,4027.5,4027.4,0.5927]
[1758907804622,0.6067,4027.4,4027.0,0.4467]
[1758907804822,0.282,4027.3,4026.8,0.5927]
[1758907805024,0.72868,4027.3,4026.8,0.5927]
[1758907805221,3.2078,4027.1,4026.8,0.5927]
[1758907805418,3.2078,4027.1,4026.7,0.44673]
[1758907805623,0.6067,4026.8,4026.2,3.2078]
[1758907805817,0.5657,4026.4,4025.8,0.5927]
[1758907806126,6.31448469,4026.9,4026.3,0.5623]
[1758907806426,6.31448469,4026.9,4026.4,0.44677]
[1758907806427,0.282,4026.8,4026.4,0.44677]
[1758907806613,0.5657,4026.7,4026.4,0.5623]
[1758907806816,0.72873,4026.8,4026.4,0.5623]
[1758907807133,0.44675,4026.7,4026.4,0.5623]
[1758907807425,0.5657,4026.6,4026.4,0.44677]
[1758907807627,0.5657,4026.7,4026.6,0.44675]
[1758907807814,3.2078,4027.1,4027.0,0.5623]
[1758907808014,3.2078,4027.1,4027.0,0.7927]
[1758907808315,0.11578227,4027.1,4027.0,4.0005]
[1758907808521,0.282,4027.3,4027.2,0.5623]
[1758907808721,0.39779113,4027.3,4027.2,0.5623]
[1758907808920,0.02699697,4027.5,4027.4,0.5623]
[1758907811330,0.63509697,4027.5,4027.4,0.5623]
[1758907811522,1.05476,4027.4,4026.9,0.44671]
[1758907811719,0.11580714,4027.3,4026.9,0.44671]
[1758907811919,0.282,4027.4,4026.9,0.44671]
[1758907811920,0.11580714,4027.2,4026.9,0.44671]
[1758907812120,0.282,4027.4,4026.9,0.44671]
[1758907812121,0.6081,4027.0,4026.9,1.03011]
[1758907812324,0.11580714,4027.0,4026.9,1.03011]
[1758907812525,0.6081,4026.9,4026.7,1.03013]
[1758907812830,0.11580714,4026.8,4026.7,1.03013]
[1758907813026,0.282,4027.4,4026.9,0.44672]
[1758907813222,1.17060386,4027.3,4026.7,1.03013]
[1758907813423,0.56251386,4027.2,4026.7,0.5834]
[1758907813725,0.11582386,4027.1,4026.9,0.44671]
[1758907813926,0.6081,4027.4,4027.1,1.03009]
[1758907814225,0.6081,4027.2,4026.8,0.44672]
[1758907814429,0.11583689,4027.1,4026.6,1.03014]
[1758907814731,0.35423689,4027.0,4026.7,0.44674]
[1758907815022,0.6081,4026.8,4026.6,0.44674]
[1758907815228,0.72393689,4026.7,4026.6,0.44674]
[1758907815933,0.11583689,4026.7,4026.6,1.03014]
[1758907816624,0.282,4027.3,4027.2,0.44668]
[1758907816830,0.39378033,4027.3,4027.2,1.03008]
[1758907817132,0.6081,4027.2,4026.6,0.5834]
[1758907817334,0.11178033,4027.1,4026.9,0.44671]
[1758907817632,0.11178033,4027.0,4026.8,0.44673]
[1758907817934,0.11178033,4026.9,4026.6,1.03014]
[1758907818139,0.6081,4026.7,4026.6,0.44674]
[1758907818331,0.6081,4026.6,4026.5,3.2078]
[1758907818626,0.71988033,4026.6,4026.5,3.2078]
[1758907819128,0.71988033,4026.6,4024.9,2.23467]
[1758907819129,0.6081,4026.2,4025.5,3.4444]
[1758907819325,0.6081,4025.9,4025.5,3.2078]
[1758907819524,0.11178033,4025.8,4025.7,0.44685]
[1758907820022,0.233,4027.0,4026.1,1.117]
[1758907820222,0.6081,4027.1,4027.0,0.44671]
[1758907820432,0.61029697,4027.5,4027.3,0.44666]
[1758907820633,0.281,4027.4,4026.8,3.2078]
[1758907820934,0.281,4027.4,4026.5,0.2396]
[1758907820935,3.2078,4027.2,4026.5,0.2396]
[1758907821122,0.6081,4026.9,4026.3,3.2078]
[1758907821323,0.281,4026.8,4026.3,3.2078]
[1758907821522,0.6081,4026.7,4026.3,3.7912]
[1758907821718,0.6081,4026.5,4026.3,3.7912]
[1758907821920,0.44682,4026.0,4025.8,0.5834]
[1758907822123,1.05496,4025.7,4025.6,0.5834]
[1758907822322,0.44687,4025.5,4025.2,3.2078]
[1758907822527,1.05498,4025.4,4025.2,3.2078]
[1758907822729,0.6081,4025.6,4025.3,0.5834]
[1758907823025,0.44685,4025.7,4025.2,3.2078]
[1758907823231,0.6081,4025.1,4025.0,0.5834]
[1758907823432,0.6081,4024.9,4024.7,3.2078]
[1758907824133,0.6081,4024.9,4024.4,0.5834]
[1758907824726,0.6081,4024.9,4024.2,3.2078]
[1758907824931,0.2384,4025.5,4024.0,0.2396]
[1758907824932,0.6081,4025.4,4024.9,0.5834]
[1758907825131,0.6081,4026.4,4025.5,0.2396]
[1758907825434,0.8891,4027.3,4026.6,1.03015]
[1758907825732,1.33578,4027.3,4026.6,0.5834]
[1758907825932,0.6081,4027.0,4026.6,0.5834]
[1758907826231,0.6081,4027.2,4026.3,3.7912]
[1758907826735,0.281,4027.3,4027.2,0.5834]
[1758907827332,0.281,4027.3,4026.7,0.5834]
[1758907827532,0.8891,4027.3,4026.7,0.5834]
[1758907827732,0.4467,4027.1,4026.7,0.5834]
[1758907827925,0.6081,4027.0,4026.7,0.5834]
[1758907828125,0.44673,4026.8,4026.7,0.5834]
[1758907828729,3.2078,4026.9,4026.1,3.2078]
[1758907828926,0.44677,4026.5,4026.1,3.2078]
[1758907829126,1.05487,4026.5,4026.2,0.5834]
[1758907829325,1.05487,4026.5,4026.1,3.2078]
[1758907829533,0.6329,4026.5,4026.2,0.5834]
[1758907829834,0.44681,4026.1,4025.7,0.5834]
[1758907830025,0.44679,4026.3,4025.7,0.5834]
[1758907830229,0.47156,4026.5,4025.7,0.5834]
[1758907830429,0.44683,4026.0,4025.7,0.5834]
[1758907830631,0.281,4026.1,4025.7,0.5834]
[1758907830935,0.6081,4026.0,4025.7,0.5834]
[1758907831936,0.11129045,4025.9,4025.7,0.5834]
[1758907832130,0.11129045,4025.8,4025.7,0.5834]
[1758907832833,0.11129045,4025.8,4025.7,5.5834]
[1758907833045,0.0248,4026.5,4026.4,0.5834]
[1758907833233,0.0248,4026.5,4026.4,3.7912]
[1758907834041,0.0248,4026.5,4026.4,3.7904]
[1758907834532,0.47156,4026.5,4026.0,0.2396]
[1758907834732,0.47156,4026.5,4025.9,3.2078]
[1758907834929,0.44678,4026.4,4025.9,3.2078]
[1758907835135,0.6081,4026.3,4025.9,3.2078]
[1758907835437,0.6081,4026.2,4025.9,3.2078]
[1758907835642,0.281,4026.4,4026.1,0.4468]
[1758907835842,0.6081,4026.3,4025.9,3.65462]
[1758907836142,0.281,4026.3,4025.9,3.7912]
[1758907836336,0.281,4026.3,4026.0,1.03021]
[1758907836542,0.281,4026.3,4025.9,3.7912]
[1758907836543,0.6081,4026.2,4025.9,3.7912]
[1758907836736,0.6081,4026.2,4025.6,0.5834]
[1758907837137,0.281,4026.3,4026.1,0.5834]
[1758907837337,0.281,4026.3,4026.2,0.5834]
[1758907837638,0.0248,4026.5,4026.3,1.03018]
[1758907837841,0.9139,4026.5,4025.9,3.2078]
[1758907838038,0.6081,4026.4,4026.1,0.4468]
[1758907838336,0.3058,4026.5,4026.3,0.44678]
[1758907838531,0.3058,4026.5,4025.9,3.2078]
[1758907838735,0.00219697,4027.5,4026.4,3.7912]
[1758907838933,0.2384,4029.5,4025.4,11.1722]
[1758907838934,0.6081,4029.1,4028.5,0.44653]
[1758907839139,0.6081,4029.1,4028.8,3.7912]
[1758907839333,0.6081,4029.4,4028.8,3.7912]
[1758907839539,3.2078,4029.1,4028.5,0.5834]
[1758907839737,3.2078,4029.1,4028.3,3.2078]
[1758907839948,0.6081,4028.4,4028.3,0.00250624]
[1758907846350,5.6081,4028.4,4028.3,0.00250624]
[1758907847050,0.5533,4028.3,4027.3,3.2078]
[1758907847251,3.4337,4028.0,4027.6,0.44664]
[1758907847451,3.4337,4028.0,4027.3,3.2078]
[1758907847651,3.8803,4028.0,4027.4,0.44666]
[1758907847847,0.5533,4027.8,4027.3,3.2078]
[1758907848046,0.28,4027.7,4027.5,0.44664]
[1758907848249,0.2259,4027.5,4027.3,3.65722918]
[1758907848551,0.5533,4027.4,4027.3,0.00275918]
[1758907848746,0.6549909,4027.4,4027.3,0.00275918]
[1758907849652,0.5533,4027.4,4027.3,0.00275918]
[1758907850446,0.65499119,4027.4,4027.3,0.00275918]
[1758907850745,0.5533,4027.3,4026.7,3.2078]
[1758907851048,0.5533,4026.9,4026.8,0.44673]
[1758907851246,0.65499119,4026.9,4026.8,0.44673]
[1758907851950,0.65499119,4026.9,4026.8,0.44871856]
[1758907852544,0.65499119,4026.9,4026.8,0.00198856]
[1758907852946,0.93499119,4026.9,4026.8,0.00198856]
[1758907853148,0.93499119,4026.9,4026.8,0.44871856]
[1758907853648,0.93499119,4026.9,4026.8,0.00198856]
[1758907853851,0.93499119,4026.9,4026.8,0.44871856]
[1758907854052,0.93499119,4026.9,4026.8,0.00198856]
[1758907854254,4.58951119,4026.9,4026.8,0.00198856]
[1758907855548,9.58951119,4026.9,4026.8,0.00198856]
[1758907855950,0.2259,4026.5,4026.1,0.4468]
[1758907856156,0.38169119,4026.4,4026.1,0.4468]
[1758907856351,0.5533,4026.2,4025.7,3.2078]
[1758907856653,0.93499119,4026.1,4026.0,0.44682]
[1758907856954,0.93700163,4026.1,4026.0,0.00271174]
[1758907857253,1.15266855,4026.1,4026.0,0.00271174]
[1758907857646,0.2259,4026.0,4025.2,3.2078]
[1758907857950,3.2078,4025.8,4025.3,1.02549]
[1758907858150,0.5533,4025.6,4025.3,0.5786]
[1758907858351,0.77446119,4025.5,4024.9,0.44694]
[1758907858549,0.44697,4024.7,4024.2,0.5786]
[1758907858748,0.10169119,4024.6,4024.3,0.5786]
[1758907858952,0.38169119,4024.5,4024.2,0.00299712]
[1758907859255,0.10169119,4024.4,4024.3,0.5786]
[1758907859455,0.65499119,4024.4,4024.2,0.00299712]
[1758907859659,0.65499119,4024.3,4024.2,0.00299712]
[1758907860352,0.44704,4024.0,4023.3,0.5786]
[1758907860559,0.44704,4024.0,4022.6,1.11797]
[1758907860560,0.5533,4023.0,4022.6,0.5786]
[1758907860761,0.88089119,4023.0,4022.5,3.2078]
[1758907860954,0.88089119,4023.0,4022.2,0.5786]
[1758907861360,0.44723,4022.3,4021.6,0.5786]
[1758907861659,0.38169119,4022.2,4021.6,0.5786]
[1758907861861,0.10169119,4022.1,4021.7,0.5786]
[1758907862052,0.10169119,4022.0,4021.7,0.5786]
[1758907862353,3.2078,4022.7,4021.7,0.5786]
[1758907862354,0.10169119,4021.9,4021.8,5.5786]
[1758907862560,0.00305148,4023.0,4022.8,0.44717]
[1758907862755,0.00305148,4023.0,4022.5,0.2295]
[1758907862756,0.00305148,4023.0,4022.9,3.7864]
[1758907862955,0.10429054,4023.0,4022.9,3.7864]
[1758907863462,0.10429054,4023.0,4022.9,8.7864]
[1758907863654,0.10429054,4023.0,4022.9,3.7864]
[1758907864155,0.00305148,4023.0,4022.9,3.7856]
[1758907864555,0.00305148,4023.0,4022.9,8.7856]
[1758907867460,0.00305148,4023.0,4022.9,3.7856]
[1758907868066,0.55605148,4023.0,4022.9,3.2078]
[1758907868359,0.44718,4022.8,4022.4,0.5956]
[1758907868560,0.553,4022.6,4022.4,0.5956]
[1758907869151,1.0002,4022.6,4022.0,0.2295]
[1758907869351,0.553,4022.4,4022.1,1.04285]
[1758907869555,0.28,4022.6,4022.3,1.04283]
[1758907869751,0.00305148,4023.0,4022.6,0.5956]
[1758907869955,0.00305148,4023.0,4022.9,0.5956]
[1758907870958,0.00305148,4023.0,4022.9,5.5956]
[1758907871159,0.00305148,4023.0,4022.9,5.8756]
[1758907871461,0.00305148,4023.0,4022.9,5.5956]
[1758907871662,0.00305148,4023.0,4022.9,5.8756]
[1758907871964,0.00305148,4023.0,4022.9,5.5956]
[1758907872161,0.00305148,4023.0,4022.9,1.32276]
[1758907872358,0.00305148,4023.0,4022.9,1.04276]
[1758907872966,0.00305148,4023.0,4022.9,6.04276]
[1758907873161,0.0248,4023.5,4023.4,0.44711]
[1758907873462,3.4878,4024.2,4024.1,0.44703]
[1758907873764,3.2078,4024.7,4024.1,3.755]
[1758907873962,3.2078,4024.7,4024.3,0.447]
[1758907873963,0.571,4024.5,4024.3,0.447]
[1758907874158,3.2078,4024.7,4024.6,0.99417]
[1758907874463,3.31082108,4024.7,4024.6,0.99593842]
[1758907874661,0.10302108,4024.7,4024.6,0.54896842]
[1758907874858,0.10302108,4024.7,4024.6,0.00176842]
[1758907875062,0.67402108,4024.7,4024.6,0.00176842]
[1758907875461,0.67402108,4024.7,4024.1,3.2078]
[1758907875666,0.68045,4024.0,4023.2,0.44712]
[1758907875859,0.68045,4024.0,4023.1,3.755]
[1758907875860,0.10091052,4023.9,4023.1,3.755]
[1758907876058,0.571,4023.7,4023.3,0.44712]
[1758907876361,0.10091052,4023.6,4023.4,0.4471]
[1758907876566,0.571,4024.0,4023.7,0.44707]
[1758907876867,0.10048679,4023.9,4023.4,0.00276005]
[1758907877069,0.10048679,4023.8,4023.4,0.00276005]
[1758907877270,0.571,4023.7,4023.4,0.00276005]
[1758907877565,0.10048679,4023.6,4023.5,0.99429]
[1758907877762,0.10048679,4023.8,4023.5,0.99429]
[1758907877963,0.10048679,4023.7,4023.5,0.99429]
[1758907878165,3.2078,4023.9,4023.6,0.5472]
[1758907878468,0.10061854,4023.8,4023.6,0.99428]
[1758907878660,0.10061854,4023.7,4023.6,0.99428]
[1758907878967,0.10061854,4023.7,4023.4,0.00276005]
[1758907879166,0.10061854,4023.6,4023.4,0.54996005]
[1758907879466,0.67161854,4023.5,4023.4,0.00276005]
[1758907880266,0.67169744,4023.5,4023.4,0.00276005]
[1758907880461,0.10069744,4023.5,4023.4,0.54996005]
[1758907880660,0.10069744,4023.5,4023.4,5.82896005]
[1758907880864,0.0248,4024.2,4023.9,0.44705]
[1758907881164,0.0248,4024.2,4024.0,0.44703]
[1758907881361,0.0248,4024.2,4024.1,0.5472]
[1758907881569,0.279,4024.6,4024.1,0.5472]
[1758907881759,0.00211056,4024.7,4024.2,0.5472]
[1758907882165,0.00211056,4024.7,4024.6,0.5472]
[1758907882866,1.01798,4024.6,4024.1,3.2078]
[1758907883070,0.571,4024.6,4024.2,0.5472]
[1758907883465,0.44698,4024.6,4024.1,3.2078]
[1758907883667,0.571,4024.5,4024.1,3.2078]
[1758907883971,0.44699,4024.5,4024.0,0.44703]
[1758907884167,0.571,4024.5,4024.2,0.44702]
[1758907884469,0.44701,4024.3,4023.8,0.5472]
[1758907884768,0.72602,4024.2,4023.6,3.2078]
[1758907885072,0.571,4024.0,4023.6,3.2078]
[1758907885364,0.44704,4024.0,4023.6,3.2078]
[1758907885672,0.279,4024.2,4023.4,0.54996005]
[1758907885673,0.44706,4023.9,4023.4,0.54996005]
[1758907885858,5.074041,4023.9,4023.4,0.00276005]
[1758907886066,0.44708,4023.7,4023.4,0.00276005]
[1758907886270,3.93389,4023.6,4023.4,0.00276005]
[1758907886768,0.44715,4023.0,4022.6,3.2078]
[1758907887071,0.279,4022.9,4022.5,0.4472]
[1758907887269,0.2334,4023.5,4021.9,0.44727]
[1758907887270,0.2334,4022.5,4021.9,0.44727]
[1758907887476,0.571,4022.3,4021.9,0.44727]
[1758907887771,0.571,4022.3,4022.1,0.44725]
[1758907887974,0.279,4022.4,4022.2,0.5472]
[1758907888276,3.2078,4022.6,4022.2,0.5472]
[1758907888471,0.279,4022.5,4022.2,0.5472]
[1758907888776,0.44722,4022.4,4021.9,0.00311171]
[1758907888967,0.571,4022.3,4021.9,0.00311171]
[1758907889168,0.571,4022.9,4022.5,0.4472]
[1758907889368,0.571,4023.2,4022.9,0.99436]
[1758907889574,0.279,4023.1,4022.7,0.5472]
[1758907889774,0.279,4023.1,4022.7,0.99438]
[1758907889974,0.571,4023.0,4022.3,3.2078]
[1758907890274,0.44716,4022.9,4022.3,3.2078]
[1758907890470,0.8044,4023.0,4022.3,3.2078]
[1758907890674,1.25156,4023.0,4022.3,3.65503]
[1758907890976,1.25156,4023.0,4020.8,3.2078]
[1758907890977,10.148082,4022.4,4020.8,3.2078]
[1758907891169,0.44736,4021.2,4021.1,0.5472]
[1758907891375,3.2078,4021.2,4021.1,0.5472]
[1758907891574,0.279,4021.7,4021.5,0.2176]
[1758907891772,3.2078,4021.8,4021.5,0.2176]
[1758907892077,3.20994046,4021.8,4021.6,0.5472]
[1758907892376,3.20994046,4021.8,4021.7,0.5472]
[1758907892780,0.10284662,4021.8,4021.7,0.5472]
[1758907893472,3.58964662,4021.8,4021.7,0.5472]
[1758907893974,8.58964662,4021.8,4021.7,0.5472]
[1758907894168,0.4473,4021.7,4021.5,0.2208256]
[1758907894370,0.10070616,4021.6,4021.5,0.2208256]
[1758907895574,5.10070616,4021.6,4021.0,0.2176]
[1758907895779,8.281841,4021.1,4021.0,0.2176]
[1758907896080,9.10890716,4021.1,4021.0,0.7648]
[1758907896590,9.10890716,4021.1,4021.0,0.76749084]
[1758907896591,3.30850616,4021.1,4021.0,0.76749084]
[1758907896773,3.58750616,4021.1,4021.0,0.76749084]
[1758907897672,8.66154716,4021.1,4021.0,0.76749084]
[1758907898067,8.38254716,4021.1,4021.0,0.76749084]
[1758907898274,8.66154716,4021.1,4021.0,0.76749084]
[1758907899181,3.30850616,4021.1,4021.0,0.76749084]
[1758907899375,3.30850616,4021.1,4021.0,5.76749084]
[1758907899681,0.10070616,4021.1,4021.0,0.76749084]
[1758907900780,3.4868,4021.6,4021.5,1.21212]
[1758907900980,3.4868,4021.6,4021.5,0.7648]
[1758907901586,3.2078,4021.6,4021.5,0.7648]
[1758907901880,3.4868,4021.6,4021.5,0.7648]
[1758907902476,3.2078,4021.6,4021.5,0.7648]
[1758907902678,3.4868,4021.6,4021.5,0.7648]
[1758907903385,0.00214046,4021.8,4021.7,0.5514]
[1758907904184,0.28114046,4021.8,4021.7,0.5514]
[1758907905485,0.72843046,4021.8,4021.7,0.5514]
[1758907906082,5.72843046,4021.8,4021.7,0.5514]
[1758907906986,0.44731,4021.6,4021.5,0.769]
[1758907907187,3.65511,4021.6,4021.5,0.769]
[1758907907786,8.93411,4021.6,4021.5,0.769]
[1758907909386,8.4868,4021.6,4021.5,0.769]
[1758907909588,3.2078,4021.6,4021.5,0.769]
[1758907909792,3.93411,4021.6,4021.5,0.769]
[1758907909976,3.4868,4021.6,4021.5,0.769]
[1758907910587,3.93411,4021.6,4021.5,0.769]
[1758907910887,3.2078,4021.6,4021.5,0.769]
[1758907911189,3.4868,4021.6,4021.5,0.769]
[1758907912580,3.93411,4021.6,4021.5,0.769]
[1758907912782,3.58690488,4021.6,4021.1,0.5514]
[1758907912992,0.10010488,4021.5,4021.1,0.5514]
[1758907913192,0.82643488,4021.4,4021.1,0.5514]
[1758907913387,0.10010488,4021.3,4021.1,0.5514]
[1758907913592,0.37910488,4021.2,4021.1,0.5514]
[1758907914384,0.37928328,4021.2,4021.1,0.99876]
[1758907914781,0.10028328,4021.2,4021.1,0.99876]
[1758907914986,0.10028328,4021.2,4021.1,5.99876]
[1758907915289,0.279,4021.6,4021.5,1.22202]
[1758907918198,0.00214046,4021.8,4021.7,0.9987]
[1758907918694,0.00214046,4021.8,4021.7,5.9987]
[1758907918896,0.0248,4022.3,4022.2,0.99864]
[1758907919192,0.279,4022.5,4022.4,0.44722]
[1758907919395,0.279,4022.5,4022.4,0.99862]
[1758907919794,3.2078,4022.6,4022.5,0.7747]
[1758907919998,0.279,4023.0,4022.9,0.5514]
[1758907920197,0.28193739,4023.0,4022.9,0.5514]
[1758907921494,0.00293739,4023.0,4022.9,0.5514]
[1758907921694,3.2078,4023.6,4023.5,1.2218]
[1758907921894,1.91938036,4023.6,4023.5,1.2218]
[1758907922101,0.278,4023.8,4023.7,0.44707]
[1758907922301,0.278,4023.8,4023.7,0.99847]
[1758907922601,3.2078,4024.6,4024.5,0.7747]
[1758907922900,3.48897232,4024.6,4024.5,0.7768361]
[1758907923999,14.37608181,4024.6,4024.5,0.0021361]
[1758907924196,14.37608181,4024.6,4024.0,0.2233]
[1758907924402,3.2078,4024.1,4024.0,0.7747]
[1758907924603,3.4858,4024.1,4024.0,0.2233]
[1758907924901,8.4858,4024.1,4024.0,0.2233]
[1758907925200,0.4471,4023.5,4023.2,0.3281]
[1758907925400,3.2078,4023.3,4023.2,0.00265587]
[1758907925606,3.4858,4023.3,4023.2,0.00265587]
[1758907925805,8.4858,4023.3,4023.2,0.00265587]
[1758907926202,1.11786,4023.1,4022.0,0.2233]
[1758907926392,3.2078,4022.1,4022.0,0.2233]
[1758907926600,3.93306,4022.1,4021.3,0.44734]
[1758907926994,3.93306,4022.1,4021.4,0.44733]
[1758907927208,3.2078,4021.6,4021.5,0.22563192]
[1758907927502,3.5884107,4021.6,4021.5,0.78113192]
[1758907927809,3.5884107,4021.6,4021.5,0.22563192]
[1758907928000,9.24549645,4021.6,4021.5,0.00233192]
[1758907928199,8.79818645,4021.6,4020.6,0.5555]
[1758907928500,3.2078,4020.8,4020.6,0.5555]
[1758907928704,0.37753978,4020.7,4020.5,0.2368]
[1758907928907,0.09953978,4020.6,4020.5,0.2368]
[1758907929104,0.09953978,4020.6,4020.5,0.23884033]
[1758907929303,0.09953978,4020.6,4020.5,0.79434033]
[1758907929704,3.2078,4021.3,4021.1,0.5555]
[1758907930008,0.37753969,4021.2,4021.1,0.5555]
[1758907930201,0.09953969,4021.2,4021.1,0.5555]
[1758907930505,0.37753969,4021.2,4021.1,0.5555]
[1758907930895,0.37753969,4021.2,4021.1,8.7633]
[1758907932803,0.00307092,4021.6,4021.1,8.7633]
[1758907933008,0.00307092,4021.6,4021.5,1.25502]
[1758907933709,0.00307092,4021.6,4021.5,0.8077]
[1758907935103,0.00307092,4021.6,4021.1,0.5706]
[1758907935104,0.44735,4021.3,4021.1,0.5706]
[1758907935409,0.278,4021.2,4021.1,0.5706]
[1758907936310,3.2078,4021.3,4021.2,1.01795]
[1758907937512,0.278,4021.4,4021.2,1.01795]
[1758907937806,0.278,4021.4,4021.3,0.5706]
[1758907938114,0.00307092,4021.6,4021.5,0.2371]
[1758907938315,0.00307092,4021.6,4021.5,0.8077]
[1758907939605,0.4474,4020.8,4020.6,0.5706]
[1758907939808,0.4474,4020.8,4020.1,0.5706]
[1758907939809,0.5384,4020.7,4020.1,0.5706]
[1758907940009,0.5384,4020.7,4020.1,1.01807]
[1758907940210,0.98581,4020.7,4020.1,1.01807]
[1758907940412,0.44743,4020.6,4020.1,0.5706]
[1758907940614,0.2604,4020.5,4020.1,0.57369392]
[1758907940814,0.278,4020.4,4020.1,1.02116392]
[1758907941012,3.2078,4020.3,4020.1,0.00309392]
[1758907941206,0.2604,4020.2,4020.1,0.00309392]